bitfinex/quotes_BTCUSD_20241110
["timestamp","ask_amount","ask_price","bid_price","bid_amount"]
[1731227582921,0.12594221,78950.0,78940.0,0.19007071]
[1731227583151,1.5,78949.0,78940.0,0.19007071]
[1731227583356,0.12594221,78948.0,78941.0,0.00579802]
[1731227583559,0.12594221,78948.0,78941.0,0.12672]
[1731227583972,1.5,78947.0,78942.0,0.00578231]
[1731227584177,0.12594221,78946.0,78942.0,0.13250231]
[1731227584353,0.12594221,78946.0,78942.0,0.12672]
[1731227584803,1.5,78945.0,78942.0,0.12672]
[1731227585016,1.62594221,78945.0,78942.0,0.12672]
[1731227586020,1.62594221,78945.0,78942.0,0.12572]
[1731227589631,0.12594221,78945.0,78942.0,0.12572]
[1731227590707,1.5,78944.0,78942.0,0.12572]
[1731227593694,1.5,78944.0,78942.0,0.12472]
[1731227597536,1.5132111,78944.0,78942.0,0.12472]
[1731227599813,1.5132111,78944.0,78942.0,0.12372]
[1731227600648,1.5132111,78944.0,78940.0,0.001678]
[1731227600649,0.023,78941.0,78940.0,0.001678]
[1731227600897,0.14894221,78941.0,78940.0,0.001678]
[1731227601076,1.64894221,78941.0,78940.0,0.001678]
[1731227601903,1.70576277,78941.0,78940.0,0.001678]
[1731227602112,1.64894221,78941.0,78940.0,0.001678]
[1731227602316,1.77488442,78941.0,78940.0,0.001678]
[1731227602521,1.77988442,78941.0,78940.0,0.001678]
[1731227602817,1.83670498,78941.0,78940.0,0.128338]
[1731227603021,1.77988442,78941.0,78932.0,0.00084]
[1731227603244,0.14781099,78933.0,78932.0,0.00084]
[1731227603367,0.2737532,78933.0,78932.0,0.00084]
[1731227603563,1.7737532,78933.0,78932.0,0.00084]
[1731227603770,1.7237532,78933.0,78932.0,0.00084]
[1731227604357,1.82587156,78933.0,78932.0,0.00084]
[1731227604582,1.72806057,78933.0,78932.0,0.12754417]
[1731227605000,1.72806057,78933.0,78932.0,0.12654417]
[1731227605213,0.028,78932.0,78916.0,0.00084]
[1731227605424,0.023,78930.0,78923.0,0.19007071]
[1731227605628,0.12594221,78929.0,78916.0,0.00084]
[1731227605836,0.12594221,78929.0,78924.0,0.00557286]
[1731227606043,0.12594221,78929.0,78916.0,0.00084]
[1731227606251,0.16111548,78929.0,78916.0,0.00084]
[1731227606421,1.5,78919.0,78916.0,0.00084]
[1731227606663,1.5,78919.0,78918.0,0.12754417]
[1731227607909,0.12594221,78929.0,78918.0,0.12754417]
[1731227608111,0.19007071,78926.0,78918.0,0.12754417]
[1731227608314,0.31601292,78926.0,78918.0,0.12754417]
[1731227608488,0.12594221,78926.0,78918.0,0.12754417]
[1731227608867,1.5,78919.0,78918.0,0.12754417]
[1731227613667,1.5,78919.0,78918.0,0.36683994]
[1731227614164,1.5,78919.0,78918.0,0.36183994]
[1731227619927,0.19007071,78933.0,78918.0,0.36183994]
[1731227620262,0.19007071,78933.0,78918.0,0.35999878]
[1731227620955,1.5,78919.0,78918.0,0.35999878]
[1731227622008,1.5,78919.0,78918.0,0.36181414]
[1731227626509,1.500839,78919.0,78918.0,0.36181414]
[1731227627931,1.50061155,78919.0,78918.0,0.36181414]
[1731227630000,1.50061155,78919.0,78918.0,0.36092514]
[1731227634819,0.000839,78919.0,78918.0,0.36092514]
[1731227635338,0.000839,78919.0,78918.0,0.23498293]
[1731227635947,1.500839,78919.0,78918.0,0.23498293]
[1731227636469,1.500839,78919.0,78918.0,0.22665517]
[1731227636688,1.500839,78919.0,78918.0,0.35259738]
[1731227636896,1.500839,78919.0,78918.0,0.36089141]
[1731227637520,1.500839,78919.0,78918.0,0.35259738]
[1731227638425,1.500839,78919.0,78918.0,0.35343638]
[1731227640716,0.000839,78919.0,78918.0,0.35343638]
[1731227643951,0.000839,78919.0,78918.0,0.35843638]
[1731227644951,1.5,78932.0,78918.0,0.35843638]
[1731227645207,1.5,78932.0,78919.0,0.12594221]
[1731227645471,0.000839,78944.0,78931.0,0.105]
[1731227645634,0.19007071,78937.0,78936.0,0.005]
[1731227645833,0.000839,78944.0,78936.0,0.13094221]
[1731227646035,0.000839,78944.0,78939.0,0.015]
[1731227646405,0.000839,78944.0,78943.0,0.1969]
[1731227646616,0.000839,78944.0,78943.0,0.32537499]
[1731227646821,0.000839,78953.0,78952.0,0.26275093]
[1731227647033,0.000839,78953.0,78952.0,0.38869314]
[1731227647257,0.000839,78953.0,78952.0,0.38887314]
[1731227647481,0.000839,78953.0,78952.0,0.23112221]
[1731227647689,0.000839,78953.0,78952.0,0.22612221]
[1731227647903,0.000839,78953.0,78952.0,0.00018]
[1731227651460,0.000839,78953.0,78952.0,0.00271279]
[1731227651666,1.500839,78953.0,78952.0,0.00018]
[1731227660443,0.00168,78956.0,78952.0,0.00018]
[1731227661074,0.00168,78956.0,78953.0,0.12594221]
[1731227661283,0.00168,78956.0,78954.0,0.10253269]
[1731227661491,0.00168,78956.0,78955.0,0.24094221]
[1731227661696,0.00168,78957.0,78956.0,0.115]
[1731227661899,0.00168,78957.0,78956.0,0.24094221]
[1731227662103,0.00168,78957.0,78956.0,0.24112221]
[1731227666345,0.00168,78957.0,78956.0,0.39087314]
[1731227666742,0.00168,78957.0,78956.0,0.38887314]
[1731227666944,0.00168,78957.0,78956.0,0.46797314]
[1731227667142,0.19007071,78974.0,78968.0,0.015]
[1731227667348,0.19007071,78974.0,78970.0,0.1]
[1731227667629,1.5,78973.0,78972.0,0.1]
[1731227667871,1.5,78973.0,78972.0,0.22594221]
[1731227668074,1.5,78973.0,78972.0,0.22612221]
[1731227668509,1.5,78973.0,78972.0,0.23112221]
[1731227668731,1.5,78973.0,78972.0,0.38887314]
[1731227669173,0.19007071,78990.0,78976.0,0.015]
[1731227669378,0.19007071,78982.0,78978.0,0.1]
[1731227669500,0.19007071,78990.0,78978.0,0.1]
[1731227669501,1.5,78989.0,78980.0,0.1]
[1731227669718,1.5,78989.0,78982.0,0.1]
[1731227670047,0.023,78988.0,78982.0,0.22612221]
[1731227670387,1.5,78989.0,78982.0,0.22612221]
[1731227672628,0.023,78988.0,78982.0,0.00018]
[1731227672843,0.023,78990.0,78982.0,0.00018]
[1731227673317,0.023,78986.0,78982.0,0.00018]
[1731227674090,0.023,78984.0,78982.0,0.00018]
[1731227674496,0.023,78990.0,78982.0,0.00018]
[1731227674794,0.023839,78990.0,78983.0,0.1]
[1731227675206,0.023839,78990.0,78983.0,0.10018]
[1731227676768,1.5,78984.0,78983.0,0.10018]
[1731227678318,1.5,78984.0,78983.0,0.00018]
[1731227678319,1.67075093,78984.0,78983.0,0.00018]
[1731227678542,1.64075093,78984.0,78983.0,0.00018]
[1731227680478,1.493,78984.0,78983.0,0.00018]
[1731227684879,0.023,78989.0,78983.0,0.00018]
[1731227685896,1.523,78984.0,78983.0,0.00018]
[1731227692571,1.61984848,78984.0,78983.0,0.00018]
[1731227693811,1.523,78984.0,78983.0,0.00018]
[1731227695077,1.61984848,78984.0,78983.0,0.00018]
[1731227698285,1.61984848,78984.0,78983.0,0.001858]
[1731227698667,1.523839,78984.0,78983.0,0.001858]
[1731227699738,0.023839,78984.0,78983.0,0.001858]
[1731227700742,1.523839,78984.0,78983.0,0.001858]
[1731227705932,1.500839,78984.0,78983.0,0.001858]
[1731227714400,1.62068748,78984.0,78983.0,0.001858]
[1731227714820,1.70158748,78984.0,78983.0,0.001858]
[1731227715591,0.20074848,78984.0,78983.0,0.001858]
[1731227715810,0.0809,78984.0,78983.0,0.001858]
[1731227716028,0.023,78987.0,78983.0,0.001858]
[1731227716666,1.5,78984.0,78983.0,0.001858]
[1731227722147,1.523,78984.0,78983.0,0.001858]
[1731227723709,1.523839,78984.0,78983.0,0.001858]
[1731227726412,1.604039,78984.0,78983.0,0.001858]
[1731227729915,0.104039,78984.0,78983.0,0.001858]
[1731227731035,1.604039,78984.0,78983.0,0.001858]
[1731227734760,1.523839,78984.0,78983.0,0.001858]
[1731227742578,1.62068748,78984.0,78983.0,0.001858]
[1731227746311,1.71753596,78984.0,78983.0,0.001858]
[1731227746514,1.71753596,78984.0,78976.0,0.001678]
[1731227746515,0.0822,78983.0,78976.0,0.001678]
[1731227746645,0.19369696,78977.0,78976.0,0.001678]
[1731227746844,0.47143917,78977.0,78976.0,0.001678]
[1731227747068,2.00932415,78977.0,78976.0,0.001678]
[1731227747500,1.97143917,78977.0,78976.0,0.001678]
[1731227747921,1.97137628,78977.0,78976.0,0.001678]
[1731227748502,1.97137628,78977.0,78976.0,0.125998]
[1731227749731,1.97137628,78977.0,78976.0,0.225998]
[1731227759426,1.97137628,78977.0,78976.0,0.288998]
[1731227759848,1.87459069,78977.0,78976.0,0.288998]
[1731227760050,1.97143917,78977.0,78976.0,0.288998]
[1731227766388,0.0763,78965.0,78946.0,0.0467]
[1731227766612,0.09923712,78965.0,78964.0,0.19007071]
[1731227766822,0.09923712,78965.0,78946.0,0.0467]
[1731227766823,0.023,78964.0,78956.0,0.00419644]
[1731227767031,1.5,78957.0,78956.0,0.00419644]
[1731227767259,1.523,78957.0,78956.0,0.00419644]
[1731227767439,0.023,78956.0,78946.0,0.0467]
[1731227767682,0.09684848,78951.0,78946.0,0.0467]
[1731227768158,1.5,78950.0,78946.0,0.0467]
[1731227768596,1.5,78950.0,78947.0,0.1]
[1731227768807,1.5,78950.0,78947.0,0.2266]
[1731227769431,1.5,78950.0,78949.0,0.19007071]
[1731227769658,1.5,78950.0,78949.0,0.1]
[1731227769882,1.5,78950.0,78949.0,0.2266]
[1731227770748,1.5,78950.0,78949.0,0.2267463]
[1731227771609,1.5,78950.0,78949.0,0.2266]
[1731227773868,1.5,78950.0,78949.0,0.2267463]
[1731227774482,0.09684848,78952.0,78949.0,0.2267463]
[1731227774722,0.09684848,78952.0,78950.0,0.1]
[1731227774933,0.09684848,78952.0,78950.0,0.2266]
[1731227775161,0.07384848,78952.0,78951.0,0.00014412]
[1731227775364,0.07384848,78952.0,78951.0,0.12674412]
[1731227775584,1.57384848,78952.0,78951.0,0.22674412]
[1731227777321,1.57384848,78952.0,78951.0,0.2266]
[1731227777757,1.5,78952.0,78951.0,0.2266]
[1731227778286,1.523,78952.0,78951.0,0.2266]
[1731227780320,1.523,78952.0,78951.0,0.227439]
[1731227782083,1.61984848,78952.0,78951.0,0.227439]
[1731227782490,1.523,78952.0,78951.0,0.227439]
[1731227783125,0.023,78952.0,78951.0,0.227439]
[1731227783548,0.023,78955.0,78952.0,0.1]
[1731227783984,0.023,78955.0,78952.0,0.2266]
[1731227784187,1.523,78953.0,78952.0,0.2266]
[1731227789829,0.09684848,78956.0,78952.0,0.2266]
[1731227790028,0.023,78955.0,78952.0,0.2266]
[1731227790439,0.023,78955.0,78953.0,0.004867]
[1731227790640,0.023,78955.0,78953.0,0.1266]
[1731227790869,1.523,78954.0,78953.0,0.2266]
[1731227795195,1.5,78954.0,78953.0,0.2266]
[1731227795398,1.5,78954.0,78953.0,0.2737]
[1731227797986,1.5,78954.0,78953.0,0.27463474]
[1731227798192,0.001678,78955.0,78954.0,0.1]
[1731227798341,0.001678,78955.0,78954.0,0.2266]
[1731227798566,0.001678,78955.0,78954.0,0.22753047]
[1731227799939,1.5,78958.0,78954.0,0.22753047]
[1731227800134,1.5,78958.0,78954.0,0.22679717]
[1731227800427,1.5,78958.0,78954.0,0.22700489]
[1731227801856,1.5,78958.0,78954.0,0.2266]
[1731227804905,0.023,78969.0,78954.0,0.2266]
[1731227805112,0.023,78964.0,78954.0,0.2266]
[1731227805516,0.023,78969.0,78954.0,0.2266]
[1731227805982,1.5,78958.0,78954.0,0.2266]
[1731227808111,0.09684848,78955.0,78954.0,0.2266]
[1731227808371,0.11984848,78955.0,78954.0,0.2266]
[1731227808574,0.11984848,78955.0,78954.0,0.23185097]
[1731227808787,1.61984848,78955.0,78954.0,0.23185097]
[1731227809202,1.61984848,78955.0,78954.0,0.2266]
[1731227809406,1.523,78955.0,78954.0,0.2266]
[1731227815092,1.5,78955.0,78954.0,0.2266]
[1731227816536,1.5,78955.0,78954.0,0.227439]
[1731227817501,1.523,78955.0,78954.0,0.227439]
[1731227819960,0.0801,78955.0,78954.0,0.227439]
[1731227820156,0.1031,78955.0,78954.0,0.227439]
[1731227820357,0.1031,78955.0,78954.0,0.23269224]
[1731227820993,1.6031,78955.0,78954.0,0.23269224]
[1731227821359,1.6031,78955.0,78954.0,0.227439]
[1731227823483,1.523,78955.0,78954.0,0.227439]
[1731227824768,1.5,78955.0,78954.0,0.227439]
[1731227829218,1.501678,78955.0,78954.0,0.227439]
[1731227834906,0.001678,78955.0,78954.0,0.227439]
[1731227835992,1.501678,78955.0,78954.0,0.227439]
[1731227840325,1.501678,78955.0,78954.0,0.48818121]
[1731227840537,0.001678,78955.0,78954.0,0.48818121]
[1731227844542,0.001678,78955.0,78954.0,0.49018121]
[1731227844986,0.001678,78958.0,78957.0,0.007]
[1731227845250,0.001678,78958.0,78957.0,0.50319069]
[1731227845477,0.001678,78958.0,78957.0,0.50119069]
[1731227846343,0.001678,78958.0,78957.0,0.40434221]
[1731227847255,0.001678,78958.0,78957.0,0.39934221]
[1731227847488,0.001678,78958.0,78957.0,0.2266]
[1731227849985,0.09684848,78965.0,78958.0,0.1]
[1731227850249,0.09684848,78965.0,78958.0,0.2266]
[1731227850901,1.5,78959.0,78958.0,0.2266]
[1731227853186,1.500839,78959.0,78958.0,0.2266]
[1731227855928,1.579139,78959.0,78958.0,0.1266]
[1731227856358,1.602139,78959.0,78958.0,0.1266]
[1731227856563,1.69898748,78959.0,78958.0,0.1266]
[1731227857442,1.69898748,78959.0,78958.0,0.2266]
[1731227860359,1.69898748,78959.0,78958.0,0.1266]
[1731227861422,1.74985847,78959.0,78958.0,0.1266]
[1731227861588,1.87580068,78959.0,78958.0,0.2266]
[1731227861967,2.00174289,78959.0,78958.0,0.2266]
[1731227862215,1.92330068,78959.0,78958.0,0.2266]
[1731227863050,1.93830068,78959.0,78958.0,0.2266]
[1731227863692,1.93830068,78959.0,78954.0,0.000839]
[1731227863693,0.028,78955.0,78954.0,0.000839]
[1731227863912,0.29564221,78955.0,78954.0,0.000839]
[1731227864120,0.29364221,78955.0,78954.0,0.000839]
[1731227864368,1.85583423,78955.0,78954.0,0.000839]
[1731227865134,1.85583423,78955.0,78954.0,0.127439]
[1731227865341,0.015,78954.0,78953.0,0.000839]
[1731227865545,0.29364221,78954.0,78953.0,0.000839]
[1731227865935,1.79364221,78954.0,78953.0,0.000839]
[1731227866101,1.91958442,78954.0,78953.0,0.000839]
[1731227866315,1.77064221,78954.0,78953.0,0.000839]
[1731227866903,1.77264221,78954.0,78953.0,0.000839]
[1731227867114,1.77264221,78954.0,78953.0,0.22744772]
[1731227867304,1.69644221,78954.0,78951.0,0.000839]
[1731227867517,0.14771947,78952.0,78951.0,0.000839]
[1731227867717,0.29666168,78952.0,78951.0,0.000839]
[1731227867934,1.79666168,78952.0,78951.0,0.000839]
[1731227868525,1.84416168,78952.0,78951.0,0.000839]
[1731227868930,1.84616168,78952.0,78951.0,0.000839]
[1731227869230,1.97210389,78952.0,78951.0,0.12744772]
[1731227869433,0.023,78945.0,78937.0,0.1]
[1731227869650,0.37886168,78945.0,78937.0,0.1]
[1731227870055,1.87886168,78945.0,78937.0,0.1]
[1731227870463,2.05230389,78945.0,78937.0,0.1]
[1731227871052,2.05230389,78945.0,78944.0,0.22828672]
[1731227871280,2.05230389,78945.0,78937.0,0.1]
[1731227871281,0.023,78943.0,78928.0,0.19007071]
[1731227871479,0.1052,78937.0,78928.0,0.19007071]
[1731227871980,0.023,78936.0,78928.0,0.19007071]
[1731227872357,0.023,78936.0,78929.0,0.00384263]
[1731227873207,0.023,78936.0,78929.0,0.13045135]
[1731227873609,0.023,78936.0,78930.0,0.1]
[1731227873807,1.523,78931.0,78930.0,0.22660872]
[1731227875878,1.5,78931.0,78930.0,0.23160872]
[1731227875996,1.5,78931.0,78930.0,0.23660872]
[1731227877194,1.5,78931.0,78930.0,0.23744772]
[1731227879789,0.14771947,78940.0,78930.0,0.23744772]
[1731227879994,0.21307071,78939.0,78931.0,0.005]
[1731227880186,0.21307071,78939.0,78932.0,0.1]
[1731227880420,0.023,78939.0,78932.0,0.22660872]
[1731227880594,0.023,78939.0,78933.0,0.00889727]
[1731227880798,1.5,78934.0,78933.0,0.00889727]
[1731227880975,1.5,78934.0,78933.0,0.23550599]
[1731227881177,1.5,78934.0,78933.0,0.23160872]
[1731227881383,1.5,78934.0,78933.0,0.24050181]
[1731227881577,1.5,78934.0,78933.0,0.23660872]
[1731227882843,1.5,78934.0,78933.0,0.32340872]
[1731227883217,1.5,78934.0,78933.0,0.32730181]
[1731227886153,1.5,78934.0,78933.0,0.3328003]
[1731227888814,1.5,78934.0,78933.0,0.2510003]
[1731227889024,1.5,78934.0,78933.0,0.24160872]
[1731227889224,1.5,78934.0,78933.0,0.24710721]
[1731227889432,1.5,78934.0,78933.0,0.24911414]
[1731227890694,1.501678,78934.0,78933.0,0.24911414]
[1731227891529,1.50133078,78934.0,78933.0,0.24911414]
[1731227894970,0.001678,78934.0,78933.0,0.24911414]
[1731227896004,1.501678,78934.0,78933.0,0.24911414]
[1731227896877,1.501678,78934.0,78933.0,0.37505635]
[1731227898505,1.501678,78934.0,78933.0,0.37705635]
[1731227898664,1.501678,78934.0,78933.0,0.37505635]
[1731227899421,1.501678,78934.0,78933.0,0.50815635]
[1731227899634,1.501678,78934.0,78933.0,0.52015635]
[1731227899635,0.001678,78934.0,78933.0,0.52015635]
[1731227899823,0.001678,78934.0,78933.0,0.5219988]
[1731227900459,0.001678,78934.0,78933.0,0.5199988]
[1731227902037,0.001678,78934.0,78933.0,0.5219988]
[1731227903864,0.001678,78934.0,78933.0,0.5228378]
[1731227904888,0.30906822,78955.0,78954.0,0.015]
[1731227905093,0.30906822,78955.0,78954.0,0.14160872]
[1731227905357,0.30906822,78955.0,78954.0,0.24776551]
[1731227906782,0.30906822,78955.0,78954.0,0.24899687]
[1731227909882,0.023839,78959.0,78958.0,0.005]
[1731227910088,0.023839,78959.0,78958.0,0.13160872]
[1731227910284,0.023839,78959.0,78958.0,0.23702569]
[1731227910892,1.523839,78959.0,78958.0,0.23702569]
[1731227911247,1.523839,78959.0,78958.0,0.23160872]
[1731227914837,1.62078421,78959.0,78958.0,0.23160872]
[1731227915216,1.74488421,78959.0,78958.0,0.22660872]
[1731227915736,1.647939,78959.0,78958.0,0.22660872]
[1731227915943,1.74488421,78959.0,78958.0,0.22660872]
[1731227916155,1.647939,78959.0,78958.0,0.22660872]
[1731227922374,1.645916,78959.0,78958.0,0.22660872]
[1731227924860,1.77185821,78959.0,78958.0,0.22660872]
[1731227926135,0.25004221,78959.0,78958.0,0.27853247]
[1731227926335,0.25004221,78959.0,78958.0,0.28474653]
[1731227927244,1.75004221,78959.0,78958.0,0.28474653]
[1731227927622,1.75004221,78959.0,78958.0,0.27853247]
[1731227927824,0.0802,78957.0,78944.0,0.1]
[1731227928045,0.20614221,78956.0,78955.0,0.000839]
[1731227928350,0.22914221,78956.0,78955.0,0.00158015]
[1731227928588,1.72914221,78956.0,78955.0,0.00158015]
[1731227928770,1.72914221,78956.0,78955.0,0.000839]
[1731227929577,1.72914221,78956.0,78955.0,0.003299]
[1731227930207,1.82608742,78956.0,78955.0,0.003299]
[1731227934793,1.82608742,78956.0,78955.0,0.05458526]
[1731227936452,1.95202963,78956.0,78955.0,0.05458526]
[1731227937695,1.82608742,78956.0,78955.0,0.05458526]
[1731227939946,1.80308742,78956.0,78955.0,0.05458526]
[1731227941033,1.80308742,78956.0,78955.0,0.04458526]
[1731227941206,0.023,78955.0,78944.0,0.105]
[1731227941415,0.09694521,78945.0,78944.0,0.105]
[1731227941840,1.59694521,78945.0,78944.0,0.0069951]
[1731227942270,1.59694521,78945.0,78942.0,0.005]
[1731227942447,0.09694521,78945.0,78942.0,0.05691719]
[1731227942651,0.09694521,78945.0,78944.0,0.005]
[1731227942866,1.59694521,78945.0,78944.0,0.22914]
[1731227943062,1.59694521,78945.0,78944.0,0.23663904]
[1731227943271,1.59694521,78945.0,78944.0,0.22914]
[1731227943733,1.81983263,78945.0,78944.0,0.22414]
[1731227943906,2.02457484,78945.0,78944.0,0.22414]
[1731227944078,1.92762963,78945.0,78944.0,0.22414]
[1731227944281,2.02457484,78945.0,78944.0,0.22414]
[1731227944482,1.92163263,78945.0,78944.0,0.22414]
[1731227944722,1.92163263,78945.0,78942.0,0.05191719]
[1731227944723,0.0788,78943.0,78942.0,0.05191719]
[1731227944920,0.023,78942.0,78931.0,0.000839]
[1731227945118,0.09694521,78934.0,78931.0,0.000839]
[1731227945322,1.59694521,78934.0,78931.0,0.000839]
[1731227945714,1.59694521,78934.0,78931.0,0.005839]
[1731227946777,1.59694521,78934.0,78933.0,0.05204175]
[1731227955142,1.57394521,78934.0,78933.0,0.05204175]
[1731227960517,1.57393249,78934.0,78933.0,0.05204175]
[1731227962142,1.5,78934.0,78933.0,0.05204175]
[1731227962589,1.59694521,78934.0,78933.0,0.05204175]
[1731227966324,1.5,78934.0,78933.0,0.05204175]
[1731227970195,0.09694521,78939.0,78933.0,0.05204175]
[1731227970705,0.0788,78943.0,78934.0,0.19007071]
[1731227970916,0.03782549,78946.0,78936.0,0.1]
[1731227971132,0.0785,78950.0,78936.0,0.1]
[1731227971133,0.12594221,78945.0,78936.0,0.1]
[1731227971564,1.5,78937.0,78936.0,0.1]
[1731227972129,1.5,78937.0,78935.0,0.005]
[1731227972343,0.12594221,78945.0,78935.0,0.005]
[1731227972777,1.5,78936.0,78935.0,0.005]
[1731227982574,1.5,78936.0,78934.0,0.095]
[1731227982806,0.12762021,78945.0,78934.0,0.095]
[1731227982990,0.19007071,78944.0,78934.0,0.095]
[1731227983189,1.5,78935.0,78934.0,0.095]
[1731227984989,0.12762021,78945.0,78934.0,0.095]
[1731227985167,0.19007071,78943.0,78933.0,0.05204175]
[1731227985379,0.03782549,78944.0,78933.0,0.05204175]
[1731227985757,0.19007071,78941.0,78933.0,0.05204175]
[1731227985959,0.1339535,78944.0,78933.0,0.05204175]
[1731227985960,1.5,78934.0,78933.0,0.05204175]
[1731227990025,1.5,78934.0,78933.0,0.05959803]
[1731227992294,1.5,78934.0,78933.0,0.06459803]
[1731227992877,0.24133269,78945.0,78933.0,0.06269585]
[1731227993073,0.19007071,78944.0,78933.0,0.06269585]
[1731227993460,1.5,78939.0,78933.0,0.06269585]
[1731227993660,1.5,78939.0,78933.0,0.05704175]
[1731227996669,1.49994875,78939.0,78933.0,0.05204175]
[1731227996865,1.49994875,78939.0,78933.0,0.05704175]
[1731227997265,1.49994875,78939.0,78933.0,0.05204175]
[1731227997522,1.49994875,78939.0,78933.0,0.05704175]
[1731227999531,1.50162675,78939.0,78933.0,0.05204175]
[1731227999739,1.50162675,78939.0,78933.0,0.05704175]
[1731227999935,0.001678,78939.0,78933.0,0.05704175]
[1731228000135,0.001678,78939.0,78933.0,0.05204175]
[1731228000417,0.001678,78939.0,78934.0,0.00566283]
[1731228000943,1.501678,78939.0,78934.0,0.00566283]
[1731228001392,1.501678,78939.0,78933.0,0.05704175]
[1731228007829,0.0781,78935.0,78933.0,0.05704175]
[1731228008282,1.5,78934.0,78933.0,0.05704175]
[1731228008491,1.5,78934.0,78933.0,0.05204175]
[1731228008707,1.90571737,78934.0,78933.0,0.05204175]
[1731228008943,1.70404221,78934.0,78933.0,0.05204175]
[1731228009149,0.0781,78933.0,78931.0,0.000839]
[1731228009387,0.41992255,78932.0,78931.0,0.000839]
[1731228009601,0.34407222,78932.0,78931.0,0.000839]
[1731228009816,1.84407222,78932.0,78931.0,0.05137508]
[1731228010029,0.0781,78931.0,78930.0,0.000839]
[1731228010232,0.34407222,78931.0,78930.0,0.000839]
[1731228010427,0.36702238,78931.0,78930.0,0.000839]
[1731228010545,1.86702238,78931.0,78930.0,0.000839]
[1731228010952,1.94283652,78931.0,78930.0,0.000839]
[1731228011381,1.95604762,78931.0,78930.0,0.000839]
[1731228011582,1.71725331,78931.0,78930.0,0.000839]
[1731228012115,1.85713685,78931.0,78930.0,0.000839]
[1731228012275,1.98307906,78931.0,78930.0,0.000839]
[1731228012452,1.90002211,78931.0,78930.0,0.000839]
[1731228013645,1.84319552,78931.0,78930.0,0.000839]
[1731228013869,1.71725331,78931.0,78930.0,0.000839]
[1731228014808,1.69425331,78931.0,78930.0,0.000839]
[1731228015009,1.73212052,78931.0,78930.0,0.000839]
[1731228015212,1.732121,78931.0,78930.0,0.000839]
[1731228015624,1.69425331,78931.0,78930.0,0.000839]
[1731228016135,1.82019552,78931.0,78930.0,0.000839]
[1731228016794,1.69425331,78931.0,78930.0,0.000839]
[1731228016998,0.02793738,78920.0,78916.0,0.00084]
[1731228017203,0.19784221,78919.0,78916.0,0.19091071]
[1731228017335,0.17484221,78919.0,78918.0,0.05283259]
[1731228017571,1.62594221,78919.0,78918.0,0.00341038]
[1731228017973,1.62594221,78919.0,78918.0,0.000839]
[1731228022041,1.62592546,78919.0,78918.0,0.000839]
[1731228029910,1.60292546,78919.0,78918.0,0.000839]
[1731228036075,1.60292546,78919.0,78916.0,0.05258679]
[1731228036275,0.10292546,78919.0,78918.0,0.09694521]
[1731228036708,1.60292546,78919.0,78918.0,0.09694521]
[1731228037971,1.5,78919.0,78918.0,0.09694521]
[1731228038577,1.5,78919.0,78918.0,0.20356896]
[1731228039648,1.5,78919.0,78916.0,0.05258679]
[1731228039849,1.5,78919.0,78918.0,0.09694521]
[1731228040356,1.5,78919.0,78918.0,0.20356905]
[1731228043103,1.5,78919.0,78918.0,0.25489279]
[1731228044366,1.5,78919.0,78918.0,0.25989279]
[1731228045022,0.001678,78921.0,78919.0,0.1]
[1731228045437,0.001678,78921.0,78920.0,0.00658699]
[1731228046125,1.501678,78921.0,78920.0,0.2035322]
[1731228046335,1.501678,78921.0,78920.0,0.1]
[1731228046570,1.501678,78921.0,78920.0,0.19694521]
[1731228047210,1.501678,78921.0,78920.0,0.09694521]
[1731228048922,1.501678,78921.0,78920.0,0.20093351]
[1731228049591,1.501678,78921.0,78920.0,0.19694521]
[1731228050061,1.501678,78921.0,78920.0,0.09694521]
[1731228050287,1.501678,78921.0,78920.0,0.19694521]
[1731228051207,1.501678,78921.0,78920.0,0.1]
[1731228051443,1.501678,78921.0,78920.0,0.19694521]
[1731228053278,1.501678,78921.0,78920.0,0.09694521]
[1731228053471,1.62762021,78921.0,78920.0,0.19694521]
[1731228053843,1.75356242,78921.0,78920.0,0.19694521]
[1731228054072,1.62762021,78921.0,78920.0,0.19694521]
[1731228054500,1.62762021,78921.0,78920.0,0.09694521]
[1731228055377,1.66553968,78921.0,78920.0,0.09694521]
[1731228056228,1.66554074,78921.0,78920.0,0.09694521]
[1731228056625,1.62762021,78921.0,78920.0,0.19694521]
[1731228056838,1.62762021,78921.0,78920.0,0.09694521]
[1731228057056,1.62762021,78921.0,78920.0,0.19694521]
[1731228058325,1.62762021,78921.0,78920.0,0.09694521]
[1731228059902,0.12594221,78921.0,78920.0,0.09694521]
[1731228060132,0.12594221,78921.0,78920.0,0.20899147]
[1731228060963,1.62594221,78921.0,78920.0,0.20899147]
[1731228061194,1.62594221,78921.0,78920.0,0.19694521]
[1731228061402,1.62594221,78921.0,78919.0,0.000839]
[1731228061614,0.12594221,78920.0,78919.0,0.000839]
[1731228061847,0.12594221,78920.0,78919.0,0.09778421]
[1731228062050,1.62594221,78920.0,78919.0,0.20986528]
[1731228062256,1.62594221,78920.0,78919.0,0.19778421]
[1731228062484,1.5,78920.0,78919.0,0.19778421]
[1731228063144,1.5,78920.0,78919.0,0.20753022]
[1731228063959,1.499922,78920.0,78919.0,0.20753022]
[1731228064985,1.499922,78920.0,78919.0,0.01058501]
[1731228065188,1.499922,78920.0,78919.0,0.20753022]
[1731228065407,1.499922,78920.0,78919.0,0.19778421]
[1731228065615,1.499922,78920.0,78919.0,0.2070524]
[1731228066443,1.499922,78920.0,78919.0,0.1070524]
[1731228066603,1.499922,78920.0,78919.0,0.2070524]
[1731228066816,1.499922,78920.0,78919.0,0.100839]
[1731228067017,1.499922,78920.0,78919.0,0.19778421]
[1731228067643,1.499922,78920.0,78919.0,0.09778421]
[1731228068857,1.5378449,78920.0,78919.0,0.09778421]
[1731228069077,1.499922,78920.0,78919.0,0.09778421]
[1731228069257,1.5378449,78920.0,78919.0,0.09778421]
[1731228069687,1.499922,78920.0,78919.0,0.09778421]
[1731228070041,1.5378449,78920.0,78919.0,0.09778421]